{"text_format":"1","workbook":"xlsx","n_sheets":3,"sheets":["Лист1","Лист2","Лист3"],"not_rendered":{"charts":0,"images":0,"macros":1,"external_links":0,"defined_names":1,"comments":0,"pivot_tables":0},"unopened":[],"bounds":{"document_bytes":16777216,"sheet_cells":100000,"rows_first":2000,"rows_last":500,"rows_between":2000,"halvings":0,"cell_chars":16384,"cell_head_chars":4096},"cells_cut":0,"cells_raw":0,"read":"whole","date_system":"1900"}

{"sheet":"Лист1","index":0,"n_rows":42,"n_cols":8,"rows_kept":42,"cut":false,"hidden":false,"merged":[[6,3,6,5],[3,3,3,5],[2,3,2,5],[1,3,1,5],[0,3,0,5],[31,1,31,4],[8,0,9,5],[21,0,21,5],[12,0,12,5],[30,1,30,4]]}
[null,null,null,"«УТВЕРЖДАЮ»"]
[null,null,null,"Директор ДЭиБПД"]
[null,null,null,"АО «Коломенский Завод»"]
[null,null,null,"______________   Степанкевич В.С."]
[]
[]
[null,"№ __1-КЗ.М10.ПП__",null,"от «_02_»   _июля_  20 _26_ г."]
[]
["Дефектная ведомость объемов работ \nОбъект: «Реконструкция цеха М-10 (в осях \"П-Т\"/\"23-25\")» на территории АО «Коломенский Завод». "]
[]
["№","Вид работ","Ед. измер","Формула расчета","Объем","Примечание","вопр. СДО","ответ"]
[]
["Раздел. 1 Демонтажные работы в осях \"П-Т\"/\"23-25\""]
[1,"Демонтаж существующей керамической плитки стен","м2","(((2.63+0.627+0.3)*1.552)*2)+(3.257*1.552)+(((6.564*2.9)/2)*2)",{"$f":"ВычислитьЯчейку(D14)","v":35.131391999999998}]
[{"$f":"A14+1","v":2},"Демонтаж существующей керамической плитки полов","м2","(2.523*7.76)+(0.627*2.523)+(2.63*2.223)",27.006891]
[3,"Демонтаж металлического обрамления ступеней (уголок 50х50х5)","тн.","45.414*3.77*0.001",0.17121078000000001,"Без перевозки"]
[4,"Демонтаж металлических конструкций перилл (труба проф.30х30х3; уголок 30х30х3)","м.п."," 7.2",7.2,"Без перевозки"]
[5,"Очистка стен и потолка от старой краски","м2","(((2.63+0.627+0.3)*1.348)*2)+(0.627*2.523)+(2.63*2.223)",17.018082999999997]
[6,"Демонтаж штукатурки стен и потолка Т=40 мм","м3","((((2.63+0.627+0.3)*1.348)*2)+(0.627*2.523)+(2.63*2.223))*0.04",0.68072331999999991]
[7,"Погрузка мусора в транспорт вручную","тн.","((35.1+27+17+1)*0.09)*1.8",12.9762]
[{"$f":"A20+1","v":8},"Перевозка строительного мусора на полигон","тн.",{"$f":"D20","v":"((35.1+27+17+1)*0.09)*1.8"},12.9762,"На расстояние от 47 км"]
["Раздел. 2 Отделочные работы в осях \"П-Т\"/\"23-25\""]
[{"$f":"A21+1","v":9},"Штукатурка стен и потолка с обработкой бетоноконтактом (Т=40 мм)","м2","(((2.63+0.627+0.3)*2.9)*2)+(3.257*2.9)+(((6.564*2.9)/2)*2)+(((0.627*2.523)+(2.63*2.223))*2)",{"$f":"ВычислитьЯчейку(D23)*1.02","v":65.24768843999999},"Смесь сухая штукатурная на цементном вяжущем \"Волма\", или аналог по согласованию (ПРАЙС)","расход, кг ??? (Типичные цементные штукатурки «ВОЛМА» (ориентир 17 кг/м² при 10 мм, 17*40/10=68кг/м2)","Волма-Тандем (цементная) 15 кг/м² при 10 мм прайс - Григорий"]
[{"$f":"A23+1","v":10},"Устройство выравнивающей стяжки полов (Т=50 мм)","м2","(0.627*2.523)+(2.63*2.223)",{"$f":"ВычислитьЯчейку(D24)*1.02","v":7.5769792200000001},"Наливные самовыравнивающие полы \"Волма\", или аналог по согласованию (ПРАЙС)","расход смеси самовыравн., кг ???  (ориентир 20 кг/м² при 10 мм, 20*50/10=100кг/м2?) + грунтовка, тип, расход?","смесь Волма-Нивелир Стандарт\t13–15 кг/м² при 10мм, грунтовка «ВОЛМА-Универсал»: ~1,1–1,7 литра на слой (или ~2,3–3,4 литра на 2 слоя) прайс - Григорий"]
[{"$f":"A24+1","v":11},"Шпатлевка потолков с обработкой грунтом глубокого проникновения (за 2 раза)","м2",{"$f":"D24","v":"(0.627*2.523)+(2.63*2.223)"},{"$f":"ВычислитьЯчейку(D25)","v":7.4284109999999997}]
[{"$f":"A25+1","v":12},"Окраска потолков акриловой водоэмульсионной краской (за 2 раза)","м2",{"$f":"D25","v":"(0.627*2.523)+(2.63*2.223)"},{"$f":"ВычислитьЯчейку(D26)","v":7.4284109999999997},"Краска водоэмульсионная RAL 9016 (Белый) (ПРАЙС)"]
[13,"Отделка стен керамической плиткой с затиркой стыков","м2","(((2.63+0.627+0.3)*2.9)*2)+(3.257*2.9)+(((6.564*2.9)/2)*2)",{"$f":"ВычислитьЯчейку(D27)","v":49.111499999999992},"Керамическая плитка Kerama Marazzi Тракай серый светлый\nглянцевый 8,5х28,5, или аналог по согласованию","объем в м2???","читать тонны как м2, предусмотреть запас 10% на бой и резку прайс - Григорий"]
[{"$f":"A27+1","v":14},"Устройство покрытия полов из керамогранитной плитки с затиркой стыков","м2","(0.627*2.523)+(2.63*2.223)",{"$f":"ВычислитьЯчейку(D28)","v":7.4284109999999997},"Керамогранит - Kerama Marazzi Джиминьяно серый матовый\nобрезной, нескользкая матовая поверхность, размер 60х60 см. С\nобязательным устройством сапожка высотой не менее 10 см, или аналог по согласованию (ПРАЙС)"," объем в м2??? + устройство сапожка высотой не менее 10 см -??? объем, м.пог., лучше выделить в отд. пункт,т.к. на это применяется отдельная расценка","читать тонны как м2, предусмотреть запас 10% на бой и резку. Сапожок - 2,3м Х 2стены, высотой 10см. прайс - Григорий"]
[{"$f":"A28+1","v":15},"Изготовление и монтаж металлических конструкций перилл из нержавеющей стали (Н=1200 мм)","м.п.","(6.564*2)+2.523+(7.19*2)",{"$f":"ВычислитьЯчейку(D29)","v":30.030999999999999},"Ограждения с 3 ригелями из нержавеющей стали (ПРАЙС)",null,"прайс - Григорий"]
[]
[null,"Производство работ осуществляется в помещениях эксплуатируемого объекта капитального строительства, эксплуатация которого не прекращена, в том числе для объектов производственного и непроизводственного назначения без остановки рабочего процесса, при этом: в зоне производства работ отсутствуют загромождающие помещение предметы."]
[null,"Объём посчитанной данной дефектной ведомостью может отличаться от фактического при выполнении строительно-монтажных работ.\nПри производстве строительно-монтажных работ могут возникнуть работы не учтённые данной деффектной ведомостью."]
[]
[null,"Составил:"]
[null,"Ведущий специалист ОпС АО \"Коломенский Завод\"  "]
[null,"                                                      (должность)                                                                                                                                               ",null,"Самойлов А.О."]
[null,"\"02\" июля 2026 г.",null,"(подпись)                               (ФИО)"]
[]
[null,"Проверил:"]
[null,"Начальник отдела по строительству АО \"Коломенский Завод\"  "]
[null,"                                                      (должность)                                                                                                                                               ",null,"Губанов П.В."]
[null,"\"02\" июля 2026 г.",null,"(подпись)                               (ФИО)"]

{"sheet":"Лист2","index":1,"n_rows":42,"n_cols":17,"rows_kept":42,"cut":false,"hidden":false,"merged":[]}
[]
[]
[]
[]
[]
[null,8.4749999999999996,{"$f":"(0.45*4)","v":1.8},{"$f":"C6/0.2","v":9},{"$f":"(D6*B6)*2","v":152.54999999999998}]
[null,8.8000000000000007,{"$f":"24-(0.45*4)","v":22.2},{"$f":"C7/0.2","v":110.99999999999999},{"$f":"(D7*B7)*2","v":1953.6},null,{"$f":"E7+E6","v":2106.15}]
[null,null,null,null,null,null,{"$f":"E9+E10","v":2052.1187499999996}]
[null,5.5750000000000002,{"$f":"0.325","v":0.32500000000000001},{"$f":"C9/0.2","v":1.625},{"$f":"(D9*B9)*2","v":18.118750000000002}]
[null,24,{"$f":"8.475","v":8.4749999999999996},{"$f":"C10/0.2","v":42.374999999999993},{"$f":"(D10*B10)*2","v":2033.9999999999995},null,0.88800000000000001,{"$f":"((E6+E7+E9+E10)*G10)*0.001","v":3.6925426499999996}]
[]
[]
[]
[null,null,null,null,null,null,null,{"$f":"0.25*0.125*0.025","v":7.8125000000000004E-4},null,null,null,null,null,null,{"$f":"3.14*0.84","v":2.6375999999999999}]
[]
[null,null,null,null,null,null,null,null,{"$f":"H14*61","v":4.7656250000000004E-2},null,null,null,null,null,{"$f":"0.125*4","v":0.5}]
[null,null,null,null,null,null,null,null,null,{"$f":"I16*3","v":0.14296875000000001}]
[null,null,null,null,1,0.2,{"$f":"E18/F18","v":5},null,null,null,{"$f":"J17*2","v":0.28593750000000001},null,null,null,{"$f":"O14*O16","v":1.3188},null,{"$f":"O18*2","v":2.6375999999999999}]
[null,null,null,null,1,0.2,{"$f":"E19/F19","v":5},{"$f":"(G18+G19)*G10","v":8.8800000000000008}]
[null,null,null,null,null,null,null,null,{"$f":"H19*2","v":17.760000000000002}]
[]
[]
[]
[]
[]
[]
[]
[]
[]
[null,null,"Устройство трубопровода из полипропиленовых труб ","м",5]
[null,null,"Устройство трубки для пневмо систем ","м",1]
[null,null,"Устройство трубопровода из стальной трубы ВГП","м",3]
[null,null,"Монтаж крана муфтового с ручным приводом или без привода водопроводная на номинальное давление до 10 МПа, номинальный диаметр: 15 мм","шт",4]
[null,null,"Монтаж кранов шаровых Ø15","шт",4]
[null,null,"Монтаж крана муфтового Ø 20 ","шт",1]
[null,null,"Монтаж кранов шаровых Ø20","шт",1]
[null,null,"Устройство фитингов прямых с внутренней резьбой с накидной гайкой ","шт",1]
[null,null,"Устройство муфт полипропиленовых Ø 20 мм","шт",3]
[null,null,"Устройство фитингов полипропиленовых с переходом на наружную резьбу 20 мм","шт",2]
[null,null,"Установка сгонов стальных оцинкованных с муфтой и контргайкой, Ø 20 мм","шт",1]
[null,null,"Установка влагоотделителя","шт",1]
[null,null,"Врезка трубопровода в действующие магистрали, диаметр наружный врезаемой трубы 57 мм","шт",1]

{"sheet":"Лист3","index":2,"n_rows":18,"n_cols":2,"rows_kept":18,"cut":false,"hidden":false,"merged":[]}
[]
["Вопросы по дробенаклепу в М-10 на 02.06.2025"]
[]
["1. ","На данном участке (оси Д-И(+0,5м)/4'-5'; Л-М/4'(+0,5м)-5') \nнет действующих силовых эл-х щитов от которых возможно было бы провести электроснабжение к данным станкам"]
["2.","На данном участке (оси Д-И(+0,5м)/4'-5'; Л-М/4'(+0,5м)-5') \nнет действующих опусков магистрали сжатого воздуха от которых необходимо провести воздухоснабжение к данным станкам"]
["3.","В инструкции к устанавливаемому оборудованию не указана необходимость установки осушителя воздуха. Если осушитель необходим, то необходимо закладывать подключение осушителя отдельно."]
[]
[]
[]
[]
[]
[]
[]
[]
[]
[]
[null,{"$f":"(6.8*0.2*1.25+7.8*0.6*(0.25*2))","v":4.04}]
[null,{"$f":"(7.8*(0.4+0.4+1.25)*0.1+(7.8-(4.115+0.1+0.1))*(0.4+0.4+1.25)*0.65+1.725*(0.4+0.6)*0.65)","v":7.3640125000000003}]